[Event "*** SCC Grand Prix: Titled Tuesday Blitz"]
[Site "Chess.com"]
[Date "2020.08.25"]
[Round "6"]
[White "Paladin61"]
[Black "Shield12"]
[Result "0-1"]
[WhiteElo "2676"]
[BlackElo "2861"]
[TimeControl "180+1"]
[EndTime "11:07:45 PDT"]
[Termination "Shield12 won on time"]

1. b3 {[%clk 0:03:00.9]} 1... g6 {[%clk 0:02:58.9]} 2. Bb2 {[%clk 0:03:01.1]}
2... Nf6 {[%clk 0:02:59.8]} 3. Bxf6 {[%clk 0:03:01.2]} 3... exf6 {[%clk
0:03:00.7]} 4. c4 {[%clk 0:03:01.5]} 4... d5 {[%clk 0:03:01]} 5. cxd5 {[%clk
0:03:00.4]} 5... Qxd5 {[%clk 0:03:01.9]} 6. Nc3 {[%clk 0:03:00.6]} 6... Qa5
{[%clk 0:03:02.2]} 7. a3 {[%clk 0:03:01]} 7... c5 {[%clk 0:03:02.6]} 8. g3
{[%clk 0:03:00.6]} 8... Bg7 {[%clk 0:03:02.8]} 9. Bg2 {[%clk 0:03:01.1]} 9... f5
{[%clk 0:03:03.1]} 10. b4 {[%clk 0:02:53.8]} 10... cxb4 {[%clk 0:03:02.4]} 11.
axb4 {[%clk 0:02:53.2]} 11... Qxb4 {[%clk 0:03:03.3]} 12. Nd5 {[%clk 0:02:52.1]}
12... Qd6 {[%clk 0:03:00]} 13. Nh3 {[%clk 0:02:48.5]} 13... O-O {[%clk
0:02:57.3]} 14. e3 {[%clk 0:02:31.7]} 14... Nc6 {[%clk 0:02:52.3]} 15. d4 {[%clk
0:02:29.6]} 15... b6 {[%clk 0:02:42.9]} 16. O-O {[%clk 0:02:17.4]} 16... Bb7
{[%clk 0:02:42.8]} 17. Nhf4 {[%clk 0:02:08]} 17... Rad8 {[%clk 0:02:38.9]} 18.
Rc1 {[%clk 0:01:54.7]} 18... Nb4 {[%clk 0:02:33.7]} 19. Nxb4 {[%clk 0:01:41.3]}
19... Bxg2 {[%clk 0:02:33.3]} 20. Kxg2 {[%clk 0:01:41.6]} 20... Qxb4 {[%clk
0:02:33.6]} 21. Rc7 {[%clk 0:01:39.6]} 21... a5 {[%clk 0:02:32.7]} 22. Qc2
{[%clk 0:01:31.1]} 22... Qb5 {[%clk 0:02:09]} 23. Rb1 {[%clk 0:01:28.6]} 23...
Qa6 {[%clk 0:02:09.1]} 24. Qc6 {[%clk 0:01:08.4]} 24... Rc8 {[%clk 0:02:07.6]}
25. Nd5 {[%clk 0:01:05.6]} 25... Rxc7 {[%clk 0:02:04.4]} 26. Nxc7 {[%clk
0:01:05.5]} 26... Qd3 {[%clk 0:02:01.8]} 27. Rxb6 {[%clk 0:01:00.3]} 27... h5
{[%clk 0:01:47.7]} 28. h4 {[%clk 0:00:47.7]} 28... f4 {[%clk 0:01:29.5]} 29.
gxf4 {[%clk 0:00:44]} 29... Qf5 {[%clk 0:01:28.6]} 30. Qf3 {[%clk 0:00:34.1]}
30... a4 {[%clk 0:01:27.9]} 31. Nd5 {[%clk 0:00:31.5]} 31... Qd3 {[%clk
0:01:19.5]} 32. f5 {[%clk 0:00:29.7]} 32... a3 {[%clk 0:01:07.9]} 33. f6 {[%clk
0:00:14.5]} 33... Bh8 {[%clk 0:01:03.8]} 34. Rb7 {[%clk 0:00:08.3]} 34... a2
{[%clk 0:01:00.9]} 35. Ra7 {[%clk 0:00:07.6]} 35... Qb1 {[%clk 0:01:00.6]} 36.
Ne7+ {[%clk 0:00:02.4]} 36... Kh7 {[%clk 0:01:00.2]} 0-1

[Event "*** SCC Grand Prix: Titled Tuesday Blitz"]
[Site "Chess.com"]
[Date "2020.08.25"]
[Round "6"]
[White "Sophist4Life"]
[Black "tk22h"]
[Result "1-0"]
[WhiteElo "2447"]
[BlackElo "2293"]
[TimeControl "180+1"]
[EndTime "11:07:47 PDT"]
[Termination "Sophist4Life won by resignation"]

1. d4 {[%clk 0:03:00.9]} 1... Nf6 {[%clk 0:02:59.2]} 2. c4 {[%clk 0:03:01.8]}
2... c5 {[%clk 0:02:59.2]} 3. d5 {[%clk 0:03:01.6]} 3... e5 {[%clk 0:02:59.3]}
4. Nc3 {[%clk 0:03:01]} 4... d6 {[%clk 0:02:59.4]} 5. e4 {[%clk 0:03:01.5]} 5...
Be7 {[%clk 0:02:59.7]} 6. g3 {[%clk 0:03:02]} 6... O-O {[%clk 0:02:59.2]} 7. Bg2
{[%clk 0:03:00.7]} 7... Nbd7 {[%clk 0:02:59.2]} 8. Nf3 {[%clk 0:03:00.1]} 8...
Ne8 {[%clk 0:02:59.2]} 9. O-O {[%clk 0:02:58.3]} 9... g6 {[%clk 0:02:59.5]} 10.
Ne1 {[%clk 0:02:56.7]} 10... Ng7 {[%clk 0:02:59.5]} 11. Nd3 {[%clk 0:02:56.1]}
11... f5 {[%clk 0:02:58.8]} 12. f4 {[%clk 0:02:52.9]} 12... Bf6 {[%clk
0:02:58.9]} 13. Qc2 {[%clk 0:02:49.2]} 13... a6 {[%clk 0:02:58.6]} 14. a4 {[%clk
0:02:26.3]} 14... b6 {[%clk 0:02:57.5]} 15. Be3 {[%clk 0:02:20.7]} 15... Qe7
{[%clk 0:02:49.8]} 16. Rae1 {[%clk 0:02:18.1]} 16... a5 {[%clk 0:02:46]} 17. Kh1
{[%clk 0:02:17.3]} 17... Ba6 {[%clk 0:02:41.8]} 18. b3 {[%clk 0:02:17.4]} 18...
Rae8 {[%clk 0:02:41.3]} 19. Bd2 {[%clk 0:02:15.2]} 19... Bc8 {[%clk 0:02:39.7]}
20. Nb5 {[%clk 0:02:12.2]} 20... Nb8 {[%clk 0:02:33]} 21. fxe5 {[%clk
0:02:08.6]} 21... dxe5 {[%clk 0:02:32.5]} 22. Bc3 {[%clk 0:02:03.5]} 22... Nd7
{[%clk 0:02:20]} 23. Qb2 {[%clk 0:02:01.8]} 23... fxe4 {[%clk 0:02:15.1]} 24.
Rxe4 {[%clk 0:02:00.1]} 24... Nf5 {[%clk 0:02:12.6]} 25. Nc7 {[%clk 0:01:57.5]}
25... Nd4 {[%clk 0:02:08.9]} 26. Nxe8 {[%clk 0:01:56.8]} 26... Rxe8 {[%clk
0:02:09.1]} 27. Bxd4 {[%clk 0:01:56.9]} 27... cxd4 {[%clk 0:02:09.1]} 28. Ree1
{[%clk 0:01:52.7]} 28... Nc5 {[%clk 0:02:05.4]} 29. Nxc5 {[%clk 0:01:51.5]}
29... bxc5 {[%clk 0:02:05.6]} 30. Be4 {[%clk 0:01:51.8]} 30... Bg7 {[%clk
0:02:04.6]} 31. Qd2 {[%clk 0:01:45.8]} 31... Qc7 {[%clk 0:02:00.5]} 32. d6
{[%clk 0:01:44]} 32... Qb6 {[%clk 0:01:44.7]} 33. Bd5+ {[%clk 0:01:40.1]} 33...
Kh8 {[%clk 0:01:43.8]} 34. Rf7 {[%clk 0:01:38.6]} 34... Qxd6 {[%clk 0:01:30]}
35. Qxa5 {[%clk 0:01:27.9]} 35... Be6 {[%clk 0:01:29.9]} 36. Bxe6 {[%clk
0:01:24]} 36... Qxe6 {[%clk 0:01:29.7]} 37. Qc7 {[%clk 0:01:23.6]} 37... Rc8
{[%clk 0:01:21.6]} 38. Qb7 {[%clk 0:01:20.5]} 38... Qc6+ {[%clk 0:01:13.1]} 39.
Qxc6 {[%clk 0:01:09.3]} 39... Rxc6 {[%clk 0:01:14]} 40. Kg2 {[%clk 0:01:07.4]}
40... Kg8 {[%clk 0:01:11.1]} 41. Rb7 {[%clk 0:01:06]} 41... Rd6 {[%clk
0:00:59.8]} 42. a5 {[%clk 0:00:59.1]} 42... d3 {[%clk 0:00:58.1]} 43. Rb6 {[%clk
0:00:55.9]} 43... d2 {[%clk 0:00:48.1]} 44. Rd1 {[%clk 0:00:55.4]} 44... Rd7
{[%clk 0:00:41.6]} 45. a6 {[%clk 0:00:54.3]} 45... e4 {[%clk 0:00:41.7]} 46. Rb7
{[%clk 0:00:52.3]} 46... e3 {[%clk 0:00:38.8]} 47. Kf3 {[%clk 0:00:51]} 1-0

[Event "*** SCC Grand Prix: Titled Tuesday Blitz"]
[Site "Chess.com"]
[Date "2020.08.25"]
[Round "6"]
[White "garicradomir"]
[Black "Moon_stone123"]
[Result "1/2-1/2"]
[WhiteElo "2309"]
[BlackElo "2527"]
[TimeControl "180+1"]
[EndTime "11:07:49 PDT"]
[Termination "Game drawn by repetition"]

1. e4 {[%clk 0:03:00.9]} 1... c5 {[%clk 0:03:00]} 2. Nf3 {[%clk 0:02:59.8]} 2...
d6 {[%clk 0:03:00.4]} 3. Be2 {[%clk 0:02:59.9]} 3... Nf6 {[%clk 0:03:00.5]} 4.
c3 {[%clk 0:03:00.3]} 4... g6 {[%clk 0:03:00.9]} 5. O-O {[%clk 0:02:55.8]} 5...
Bg7 {[%clk 0:03:01.1]} 6. Bb5+ {[%clk 0:02:55.1]} 6... Bd7 {[%clk 0:03:00]} 7.
Bxd7+ {[%clk 0:02:54.7]} 7... Qxd7 {[%clk 0:03:00.9]} 8. Re1 {[%clk 0:02:55]}
8... O-O {[%clk 0:03:01]} 9. d4 {[%clk 0:02:55.1]} 9... cxd4 {[%clk 0:03:01.5]}
10. cxd4 {[%clk 0:02:56]} 10... d5 {[%clk 0:03:02.1]} 11. e5 {[%clk 0:02:55.3]}
11... Ne4 {[%clk 0:03:02.6]} 12. Nbd2 {[%clk 0:02:55.7]} 12... Nxd2 {[%clk
0:03:00.6]} 13. Bxd2 {[%clk 0:02:56.6]} 13... Nc6 {[%clk 0:03:01.1]} 14. h4
{[%clk 0:02:55.7]} 14... h5 {[%clk 0:02:59.9]} 15. Rc1 {[%clk 0:02:51.4]} 15...
Qg4 {[%clk 0:02:59]} 16. Bc3 {[%clk 0:02:21.8]} 16... e6 {[%clk 0:02:57.5]} 17.
Qb3 {[%clk 0:02:15.8]} 17... b6 {[%clk 0:02:49.6]} 18. Red1 {[%clk 0:01:53.6]}
18... Rfc8 {[%clk 0:02:48.2]} 19. Be1 {[%clk 0:01:49.9]} 19... Ne7 {[%clk
0:02:19.7]} 20. Rxc8+ {[%clk 0:01:31.2]} 20... Rxc8 {[%clk 0:02:20.6]} 21. Qa3
{[%clk 0:01:31.5]} 21... Nf5 {[%clk 0:02:13.4]} 22. Qxa7 {[%clk 0:01:30.4]}
22... Nxh4 {[%clk 0:02:12.5]} 23. Nxh4 {[%clk 0:00:52.8]} 23... Qxd1 {[%clk
0:02:11.3]} 24. Nf3 {[%clk 0:00:52.8]} 24... g5 {[%clk 0:01:43.1]} 25. Kh2
{[%clk 0:00:45.3]} 25... g4 {[%clk 0:01:42.8]} 26. Ng5 {[%clk 0:00:44.9]} 26...
Rf8 {[%clk 0:01:37.9]} 27. Bb4 {[%clk 0:00:38.9]} 27... Qxd4 {[%clk 0:01:37.6]}
28. Bxf8 {[%clk 0:00:28.8]} 28... Qxe5+ {[%clk 0:01:37.6]} 29. g3 {[%clk
0:00:19.7]} 29... Qxg5 {[%clk 0:01:36.2]} 30. Bxg7 {[%clk 0:00:18.2]} 30... Kxg7
{[%clk 0:01:37.1]} 31. Qxb6 {[%clk 0:00:17.7]} 31... Qd2 {[%clk 0:01:36.2]} 32.
a4 {[%clk 0:00:16.7]} 32... d4 {[%clk 0:01:35.4]} 33. Kg2 {[%clk 0:00:16]} 33...
d3 {[%clk 0:01:35.1]} 34. Qd4+ {[%clk 0:00:15.5]} 34... f6 {[%clk 0:01:12.8]}
35. Qd7+ {[%clk 0:00:14]} 35... Kg6 {[%clk 0:01:13.2]} 36. Qxe6 {[%clk 0:00:13]}
36... Qe2 {[%clk 0:01:10.7]} 37. Qg8+ {[%clk 0:00:10.6]} 37... Kf5 {[%clk
0:01:08.9]} 38. Qd5+ {[%clk 0:00:10.3]} 38... Kg6 {[%clk 0:01:01.3]} 39. Qg8+
{[%clk 0:00:09.9]} 39... Kh6 {[%clk 0:01:01.8]} 40. Qh8+ {[%clk 0:00:07.2]}
40... Kg6 {[%clk 0:01:02.1]} 41. Qg8+ {[%clk 0:00:05.6]} 1/2-1/2

[Event "*** SCC Grand Prix: Titled Tuesday Blitz"]
[Site "Chess.com"]
[Date "2020.08.25"]
[Round "6"]
[White "karinachess1"]
[Black "Manukyan_Artak"]
[Result "1-0"]
[WhiteElo "2485"]
[BlackElo "2326"]
[TimeControl "180+1"]
[EndTime "11:07:50 PDT"]
[Termination "karinachess1 won by checkmate"]

1. e4 {[%clk 0:03:00.9]} 1... c6 {[%clk 0:02:59.6]} 2. d4 {[%clk 0:03:00.6]}
2... d5 {[%clk 0:03:00.5]} 3. exd5 {[%clk 0:03:01.1]} 3... cxd5 {[%clk 0:03:00]}
4. Nf3 {[%clk 0:03:01.7]} 4... Nc6 {[%clk 0:03:00]} 5. Ne5 {[%clk 0:03:01.7]}
5... Bd7 {[%clk 0:02:59.5]} 6. Nxd7 {[%clk 0:02:59.7]} 6... Qxd7 {[%clk
0:02:59.5]} 7. Bb5 {[%clk 0:02:59.3]} 7... e6 {[%clk 0:02:57.4]} 8. c3 {[%clk
0:02:57.6]} 8... Bd6 {[%clk 0:02:57.4]} 9. O-O {[%clk 0:02:55.8]} 9... Nge7
{[%clk 0:02:57.4]} 10. Nd2 {[%clk 0:02:52.5]} 10... a6 {[%clk 0:02:56.6]} 11.
Bd3 {[%clk 0:02:52]} 11... Ng6 {[%clk 0:02:55.1]} 12. Nf3 {[%clk 0:02:46.5]}
12... O-O {[%clk 0:02:54.1]} 13. Re1 {[%clk 0:02:42.7]} 13... Rae8 {[%clk
0:02:52.6]} 14. Bd2 {[%clk 0:02:10]} 14... f5 {[%clk 0:02:44.1]} 15. c4 {[%clk
0:01:58.3]} 15... Nf4 {[%clk 0:02:40.3]} 16. Bf1 {[%clk 0:01:57.5]} 16... Qf7
{[%clk 0:02:35.3]} 17. Ne5 {[%clk 0:01:50.1]} 17... Bxe5 {[%clk 0:02:30.8]} 18.
dxe5 {[%clk 0:01:50.2]} 18... Ng6 {[%clk 0:02:26.7]} 19. cxd5 {[%clk 0:01:41.9]}
19... exd5 {[%clk 0:02:27.6]} 20. f4 {[%clk 0:01:39.3]} 20... Qe6 {[%clk
0:02:15]} 21. Rc1 {[%clk 0:01:38.7]} 21... Rf7 {[%clk 0:02:14.7]} 22. Qf3 {[%clk
0:01:30.5]} 22... Rd7 {[%clk 0:02:01.7]} 23. Qf2 {[%clk 0:01:28.7]} 23... Nf8
{[%clk 0:01:57.1]} 24. Bd3 {[%clk 0:01:24.2]} 24... g6 {[%clk 0:01:56.9]} 25. b4
{[%clk 0:01:19.6]} 25... Rc8 {[%clk 0:01:54.5]} 26. a4 {[%clk 0:01:18.8]} 26...
Rdc7 {[%clk 0:01:50]} 27. b5 {[%clk 0:01:12.6]} 27... axb5 {[%clk 0:01:48.7]}
28. axb5 {[%clk 0:01:13.5]} 28... Ne7 {[%clk 0:01:48.6]} 29. Rxc7 {[%clk
0:01:07.8]} 29... Rxc7 {[%clk 0:01:49.5]} 30. Qd4 {[%clk 0:01:07.8]} 30... Qd7
{[%clk 0:01:17.7]} 31. e6 {[%clk 0:00:46.1]} 31... Nxe6 {[%clk 0:01:17.2]} 32.
Qe5 {[%clk 0:00:45.9]} 32... Nc5 {[%clk 0:01:13.4]} 33. Bc3 {[%clk 0:00:43.4]}
33... d4 {[%clk 0:00:18.8]} 34. Bc4+ {[%clk 0:00:37.2]} 34... Nd5 {[%clk
0:00:16.7]} 35. Bxd5+ {[%clk 0:00:36.9]} 35... Kf8 {[%clk 0:00:14.4]} 36. Qh8#
{[%clk 0:00:35.1]} 1-0

[Event "*** SCC Grand Prix: Titled Tuesday Blitz"]
[Site "Chess.com"]
[Date "2020.08.25"]
[Round "6"]
[White "VMikhalevski"]
[Black "brute4ever"]
[Result "1-0"]
[WhiteElo "2721"]
[BlackElo "2496"]
[TimeControl "180+1"]
[EndTime "11:07:57 PDT"]
[Termination "VMikhalevski won by checkmate"]

1. Nf3 {[%clk 0:03:00.9]} 1... d5 {[%clk 0:02:59.2]} 2. g3 {[%clk 0:03:00.8]}
2... c6 {[%clk 0:02:59.5]} 3. Bg2 {[%clk 0:03:00.8]} 3... Nf6 {[%clk 0:03:00.4]}
4. c4 {[%clk 0:03:00]} 4... Bg4 {[%clk 0:02:56.5]} 5. O-O {[%clk 0:02:51.9]}
5... e6 {[%clk 0:02:54.1]} 6. d3 {[%clk 0:02:49.6]} 6... Nbd7 {[%clk 0:02:52.9]}
7. cxd5 {[%clk 0:02:48.1]} 7... exd5 {[%clk 0:02:51.7]} 8. h3 {[%clk 0:02:47.1]}
8... Bxf3 {[%clk 0:02:51.3]} 9. Bxf3 {[%clk 0:02:46.5]} 9... Bd6 {[%clk
0:02:51.9]} 10. e4 {[%clk 0:02:45]} 10... O-O {[%clk 0:02:51.3]} 11. Nc3 {[%clk
0:02:44.4]} 11... dxe4 {[%clk 0:02:47.6]} 12. dxe4 {[%clk 0:02:43.4]} 12... Ne5
{[%clk 0:02:45.5]} 13. Be2 {[%clk 0:02:42.6]} 13... Qc7 {[%clk 0:02:40]} 14. Kg2
{[%clk 0:02:42.2]} 14... Rad8 {[%clk 0:02:39.2]} 15. Qc2 {[%clk 0:02:40.4]}
15... Bb4 {[%clk 0:02:18.7]} 16. Bg5 {[%clk 0:02:38.6]} 16... Ned7 {[%clk
0:02:13]} 17. Rae1 {[%clk 0:02:24.2]} 17... Rfe8 {[%clk 0:02:10.7]} 18. Bc4
{[%clk 0:02:21.8]} 18... Qa5 {[%clk 0:01:47.3]} 19. Bd2 {[%clk 0:02:14.3]} 19...
Ne5 {[%clk 0:01:36.1]} 20. Be2 {[%clk 0:02:10.7]} 20... Rxd2 {[%clk 0:01:11.4]}
21. Qxd2 {[%clk 0:02:09.8]} 21... Nxe4 {[%clk 0:01:12]} 22. Qe3 {[%clk
0:01:54.7]} 22... Nxc3 {[%clk 0:01:04.7]} 23. bxc3 {[%clk 0:01:54]} 23... Bxc3
{[%clk 0:01:05.1]} 24. Rd1 {[%clk 0:01:42.7]} 24... Kf8 {[%clk 0:00:57.6]} 25.
a4 {[%clk 0:01:16.9]} 25... a6 {[%clk 0:00:41.7]} 26. Qe4 {[%clk 0:01:11.2]}
26... g6 {[%clk 0:00:39.3]} 27. h4 {[%clk 0:00:57.7]} 27... h5 {[%clk
0:00:36.8]} 28. Qc2 {[%clk 0:00:56.6]} 28... c5 {[%clk 0:00:30.8]} 29. Rd5
{[%clk 0:00:50.5]} 29... Bd4 {[%clk 0:00:29.3]} 30. Rb1 {[%clk 0:00:38.4]} 30...
Re7 {[%clk 0:00:28.2]} 31. Qd1 {[%clk 0:00:25.3]} 31... Qc7 {[%clk 0:00:27.3]}
32. Rxd4 {[%clk 0:00:22.3]} 32... cxd4 {[%clk 0:00:27.1]} 33. Qxd4 {[%clk
0:00:22.5]} 33... Nc6 {[%clk 0:00:25]} 34. Qh8# {[%clk 0:00:21.4]} 1-0

[Event "*** SCC Grand Prix: Titled Tuesday Blitz"]
[Site "Chess.com"]
[Date "2020.08.25"]
[Round "6"]
[White "Balla_Tamas"]
[Black "Mikhail_Golubev"]
[Result "0-1"]
[WhiteElo "2454"]
[BlackElo "2628"]
[TimeControl "180+1"]
[EndTime "11:07:59 PDT"]
[Termination "Mikhail_Golubev won by resignation"]

1. e4 {[%clk 0:03:00.9]} 1... c5 {[%clk 0:02:59]} 2. d3 {[%clk 0:02:59.1]} 2...
g6 {[%clk 0:02:57.6]} 3. g3 {[%clk 0:02:58.9]} 3... Bg7 {[%clk 0:02:57.6]} 4.
Bg2 {[%clk 0:02:59.5]} 4... e6 {[%clk 0:02:55.1]} 5. f4 {[%clk 0:03:00]} 5...
Ne7 {[%clk 0:02:54.4]} 6. Nf3 {[%clk 0:02:59.5]} 6... O-O {[%clk 0:02:51.3]} 7.
O-O {[%clk 0:02:59.1]} 7... d5 {[%clk 0:02:51.3]} 8. c3 {[%clk 0:02:54.8]} 8...
Nbc6 {[%clk 0:02:44.9]} 9. Qe2 {[%clk 0:02:50.8]} 9... b5 {[%clk 0:02:38.9]} 10.
a4 {[%clk 0:02:48.9]} 10... b4 {[%clk 0:02:35.1]} 11. e5 {[%clk 0:02:49.2]}
11... bxc3 {[%clk 0:02:30.1]} 12. bxc3 {[%clk 0:02:48.4]} 12... Ba6 {[%clk
0:02:23]} 13. Be3 {[%clk 0:02:47.2]} 13... d4 {[%clk 0:02:18.9]} 14. cxd4 {[%clk
0:02:45.8]} 14... cxd4 {[%clk 0:02:16.9]} 15. Bf2 {[%clk 0:02:45.6]} 15... Nb4
{[%clk 0:02:02.6]} 16. Rd1 {[%clk 0:02:42.2]} 16... Nf5 {[%clk 0:02:02.3]} 17.
Na3 {[%clk 0:02:37.8]} 17... Rc8 {[%clk 0:01:44.1]} 18. g4 {[%clk 0:02:35.7]}
18... Ne3 {[%clk 0:01:36.8]} 19. Bxe3 {[%clk 0:02:34]} 19... dxe3 {[%clk
0:01:36.9]} 20. Qxe3 {[%clk 0:02:34.6]} 20... Rc3 {[%clk 0:00:59.6]} 21. Qxa7
{[%clk 0:02:31.7]} 21... Bxd3 {[%clk 0:00:34.2]} 22. Nb5 {[%clk 0:02:27.9]}
22... Rc2 {[%clk 0:00:29.4]} 23. Qe3 {[%clk 0:02:22.4]} 23... Nd5 {[%clk
0:00:27.3]} 24. Qd4 {[%clk 0:02:08.8]} 24... Bxb5 {[%clk 0:00:20.1]} 25. axb5
{[%clk 0:02:08.1]} 25... Qb8 {[%clk 0:00:19.3]} 26. Ne1 {[%clk 0:02:06.6]} 26...
Rcc8 {[%clk 0:00:15.7]} 27. Bxd5 {[%clk 0:02:05.7]} 27... exd5 {[%clk
0:00:11.1]} 28. Qxd5 {[%clk 0:02:05.4]} 28... Rfd8 {[%clk 0:00:11.3]} 29. Qb3
{[%clk 0:02:01.5]} 29... Qb6+ {[%clk 0:00:10.9]} 30. Kf1 {[%clk 0:01:58.3]}
30... Bf8 {[%clk 0:00:09.6]} 31. Rxd8 {[%clk 0:01:54.9]} 31... Rxd8 {[%clk
0:00:09.3]} 32. Ra6 {[%clk 0:01:47.7]} 32... Qb7 {[%clk 0:00:09.1]} 33. Nf3
{[%clk 0:01:42.2]} 33... Qe4 {[%clk 0:00:09]} 34. Rf6 {[%clk 0:01:37.6]} 34...
Rd7 {[%clk 0:00:06.8]} 35. e6 {[%clk 0:01:37.6]} 35... Rd3 {[%clk 0:00:06.6]}
36. exf7+ {[%clk 0:01:18.3]} 36... Kh8 {[%clk 0:00:05.8]} 37. Qxd3 {[%clk
0:01:04.9]} 37... Qxd3+ {[%clk 0:00:06.7]} 38. Kg2 {[%clk 0:01:05.5]} 38... Qxb5
{[%clk 0:00:07]} 39. Re6 {[%clk 0:01:01.7]} 39... Kg7 {[%clk 0:00:06.3]} 40. Ne5
{[%clk 0:00:58.7]} 40... Qd5+ {[%clk 0:00:06.1]} 41. Kg3 {[%clk 0:00:58.3]}
41... Qxe6 {[%clk 0:00:06.9]} 42. h4 {[%clk 0:00:58.3]} 42... Bd6 {[%clk
0:00:07.1]} 43. Nf3 {[%clk 0:00:57.9]} 43... Qe3 {[%clk 0:00:06.6]} 0-1

[Event "*** SCC Grand Prix: Titled Tuesday Blitz"]
[Site "Chess.com"]
[Date "2020.08.25"]
[Round "6"]
[White "hellokostya"]
[Black "Legendinunknown"]
[Result "0-1"]
[WhiteElo "2473"]
[BlackElo "2661"]
[TimeControl "180+1"]
[EndTime "11:08:03 PDT"]
[Termination "Legendinunknown won on time"]

1. d4 {[%clk 0:03:00.9]} 1... Nf6 {[%clk 0:02:59]} 2. c4 {[%clk 0:02:54.5]} 2...
e5 {[%clk 0:02:58.6]} 3. dxe5 {[%clk 0:02:52.8]} 3... Ng4 {[%clk 0:02:57.8]} 4.
Nc3 {[%clk 0:02:50.2]} 4... Nxe5 {[%clk 0:02:56.1]} 5. e3 {[%clk 0:02:44]} 5...
Nbc6 {[%clk 0:02:53.9]} 6. a3 {[%clk 0:02:43.1]} 6... d6 {[%clk 0:02:51.1]} 7.
f4 {[%clk 0:02:41.4]} 7... Ng4 {[%clk 0:02:46.4]} 8. Nf3 {[%clk 0:02:38.1]} 8...
g6 {[%clk 0:02:45.7]} 9. h3 {[%clk 0:02:26.6]} 9... Nh6 {[%clk 0:02:40.2]} 10.
g4 {[%clk 0:02:20.3]} 10... Bg7 {[%clk 0:02:37.2]} 11. Bg2 {[%clk 0:02:09.1]}
11... O-O {[%clk 0:02:36.5]} 12. O-O {[%clk 0:02:08.6]} 12... f5 {[%clk
0:02:28.6]} 13. g5 {[%clk 0:02:07.9]} 13... Nf7 {[%clk 0:02:28.3]} 14. Nd5
{[%clk 0:02:07.4]} 14... h6 {[%clk 0:02:21.4]} 15. h4 {[%clk 0:02:01.5]} 15...
Be6 {[%clk 0:02:19.2]} 16. Rb1 {[%clk 0:01:39.1]} 16... Qd7 {[%clk 0:02:10.6]}
17. b4 {[%clk 0:01:37.5]} 17... Rae8 {[%clk 0:02:09.5]} 18. Bb2 {[%clk
0:01:22.7]} 18... Bxd5 {[%clk 0:02:03.5]} 19. Bxg7 {[%clk 0:01:18.8]} 19... Kxg7
{[%clk 0:02:03]} 20. cxd5 {[%clk 0:01:09.7]} 20... Ncd8 {[%clk 0:02:01.3]} 21.
Qd4+ {[%clk 0:01:05.6]} 21... Kg8 {[%clk 0:01:52.6]} 22. Qxa7 {[%clk 0:00:55.6]}
22... b6 {[%clk 0:01:50.1]} 23. Rbc1 {[%clk 0:00:54.3]} 23... Re7 {[%clk
0:01:46.8]} 24. Nd4 {[%clk 0:00:51.6]} 24... Qe8 {[%clk 0:01:36.9]} 25. Ne6
{[%clk 0:00:24.4]} 25... Nxe6 {[%clk 0:01:30.6]} 26. dxe6 {[%clk 0:00:25.3]}
26... Rxe6 {[%clk 0:01:30.4]} 27. Rxc7 {[%clk 0:00:25.3]} 27... Rxe3 {[%clk
0:01:30.4]} 28. Bd5 {[%clk 0:00:25.4]} 28... Rg3+ {[%clk 0:01:28]} 29. Kh2
{[%clk 0:00:23.3]} 29... Qe3 {[%clk 0:01:27]} 30. Bg2 {[%clk 0:00:12.6]} 30...
Rg4 {[%clk 0:01:06.8]} 31. Qb7 {[%clk 0:00:08.2]} 31... Qg3+ {[%clk 0:01:03.3]}
32. Kg1 {[%clk 0:00:04.8]} 32... Qxh4 {[%clk 0:01:00.1]} 33. Rf2 {[%clk
0:00:02.6]} 33... hxg5 {[%clk 0:00:57.7]} 34. Rxf7 {[%clk 0:00:02.2]} 34... Rxf7
{[%clk 0:00:57.1]} 35. Qa8+ {[%clk 0:00:02.6]} 35... Kg7 {[%clk 0:00:56.2]} 36.
Re2 {[%clk 0:00:01.8]} 36... gxf4 {[%clk 0:00:52.5]} 37. Re8 {[%clk 0:00:01.8]}
37... Qh7 {[%clk 0:00:48]} 38. Rg8+ {[%clk 0:00:02.7]} 38... Qxg8 {[%clk
0:00:47]} 0-1

[Event "*** SCC Grand Prix: Titled Tuesday Blitz"]
[Site "Chess.com"]
[Date "2020.08.25"]
[Round "6"]
[White "ChessSwole"]
[Black "Anton_Zhukov04"]
[Result "1-0"]
[WhiteElo "2439"]
[BlackElo "2220"]
[TimeControl "180+1"]
[EndTime "11:08:03 PDT"]
[Termination "ChessSwole won by resignation"]

1. d4 {[%clk 0:03:00.9]} 1... Nf6 {[%clk 0:02:59.8]} 2. Bf4 {[%clk 0:03:01.5]}
2... c5 {[%clk 0:02:59.3]} 3. d5 {[%clk 0:03:01.3]} 3... g6 {[%clk 0:02:56.1]}
4. Nc3 {[%clk 0:03:01.2]} 4... Bg7 {[%clk 0:02:54.7]} 5. e4 {[%clk 0:03:01.4]}
5... O-O {[%clk 0:02:54.9]} 6. h3 {[%clk 0:02:55.4]} 6... d6 {[%clk 0:02:55]} 7.
Nf3 {[%clk 0:02:53.9]} 7... a6 {[%clk 0:02:54.8]} 8. a4 {[%clk 0:02:53.6]} 8...
e6 {[%clk 0:02:50.9]} 9. dxe6 {[%clk 0:02:48.3]} 9... Bxe6 {[%clk 0:02:44.8]}
10. Bxd6 {[%clk 0:02:43.4]} 10... Re8 {[%clk 0:02:43.4]} 11. Bxc5 {[%clk
0:02:22]} 11... Nbd7 {[%clk 0:02:24.9]} 12. Bd4 {[%clk 0:02:17.7]} 12... Nxe4
{[%clk 0:02:24.1]} 13. Nxe4 {[%clk 0:01:58.1]} 13... Bf5 {[%clk 0:02:22.2]} 14.
Bxg7 {[%clk 0:01:57.6]} 14... Bxe4 {[%clk 0:02:12.2]} 15. Be2 {[%clk 0:01:36.9]}
15... Bxf3 {[%clk 0:02:08.7]} 16. gxf3 {[%clk 0:01:37.8]} 16... Kxg7 {[%clk
0:02:08.7]} 17. Qd4+ {[%clk 0:01:36.1]} 17... Kg8 {[%clk 0:01:50.2]} 18. O-O-O
{[%clk 0:01:21.8]} 18... Rxe2 {[%clk 0:01:32.1]} 19. Qxd7 {[%clk 0:01:20.7]}
19... Qb6 {[%clk 0:01:32.1]} 20. Rd2 {[%clk 0:01:04.5]} 20... Rxd2 {[%clk
0:01:01.5]} 21. Qxd2 {[%clk 0:01:05.4]} 21... Qc6 {[%clk 0:01:01.1]} 22. Qf4
{[%clk 0:01:00.3]} 22... b5 {[%clk 0:01:00.1]} 23. Qe4 {[%clk 0:00:57.6]} 23...
Qc8 {[%clk 0:00:45.1]} 24. h4 {[%clk 0:00:43.1]} 24... h5 {[%clk 0:00:42.6]} 25.
Rd1 {[%clk 0:00:39.4]} 25... bxa4 {[%clk 0:00:37.4]} 26. Qxa4 {[%clk 0:00:40.3]}
26... Qf5 {[%clk 0:00:35.2]} 27. Qe4 {[%clk 0:00:40.1]} 27... Qc8 {[%clk
0:00:28]} 28. Rd6 {[%clk 0:00:29.3]} 28... Rb8 {[%clk 0:00:25.5]} 29. Qd4 {[%clk
0:00:24.7]} 29... a5 {[%clk 0:00:17.8]} 30. Qd5 {[%clk 0:00:18.1]} 30... Qe8
{[%clk 0:00:16.5]} 31. Rxg6+ {[%clk 0:00:16.2]} 31... Kf8 {[%clk 0:00:14.7]} 32.
Qd6+ {[%clk 0:00:16.8]} 32... Qe7 {[%clk 0:00:12.6]} 33. Qxb8+ {[%clk
0:00:17.7]} 33... Qe8 {[%clk 0:00:13]} 34. Rg8+ {[%clk 0:00:18.5]} 34... Ke7
{[%clk 0:00:13.1]} 35. Qxe8+ {[%clk 0:00:19.3]} 1-0